[Event "*** Titled Tuesday Blitz"]
[Site "Chess.com"]
[Date "2020.04.14"]
[Round "6"]
[White "Tashik"]
[Black "LimeInTheCoconut"]
[Result "1-0"]
[WhiteElo "2549"]
[BlackElo "2344"]
[TimeControl "180+1"]
[EndTime "11:05:10 PDT"]
[Termination "Tashik won by checkmate"]

1. c4 {[%clk 0:03:00.9]} 1... Nf6 {[%clk 0:02:57.5]} 2. Nc3 {[%clk 0:03:00.9]}
2... c5 {[%clk 0:02:57]} 3. Nf3 {[%clk 0:03:00.4]} 3... Nc6 {[%clk 0:02:44.7]}
4. d4 {[%clk 0:03:00.2]} 4... cxd4 {[%clk 0:02:44.7]} 5. Nxd4 {[%clk 0:03:01.1]}
5... e6 {[%clk 0:02:40.7]} 6. g3 {[%clk 0:03:01]} 6... Qb6 {[%clk 0:02:36.5]} 7.
Ndb5 {[%clk 0:03:00.1]} 7... Bc5 {[%clk 0:02:06.9]} 8. Nd6+ {[%clk 0:02:53.3]}
8... Ke7 {[%clk 0:02:03.4]} 9. Nde4 {[%clk 0:02:52.3]} 9... Nxe4 {[%clk
0:02:00.7]} 10. Nxe4 {[%clk 0:02:53.2]} 10... Bb4+ {[%clk 0:02:00.8]} 11. Bd2
{[%clk 0:02:53.7]} 11... d6 {[%clk 0:01:49.7]} 12. Bg2 {[%clk 0:02:47.8]} 12...
Bxd2+ {[%clk 0:01:48.9]} 13. Qxd2 {[%clk 0:02:47.5]} 13... Qb4 {[%clk
0:01:44.5]} 14. Nc3 {[%clk 0:02:38.7]} 14... Qxc4 {[%clk 0:01:40.7]} 15. Qg5+
{[%clk 0:02:24.9]} 15... Kf8 {[%clk 0:01:21.7]} 16. Bxc6 {[%clk 0:02:22.3]}
16... Qxc6 {[%clk 0:01:22.6]} 17. Qd8+ {[%clk 0:02:22.4]} 17... Qe8 {[%clk
0:01:23.1]} 18. Qxd6+ {[%clk 0:02:23]} 18... Qe7 {[%clk 0:01:23.6]} 19. O-O-O
{[%clk 0:02:10.8]} 19... Qxd6 {[%clk 0:01:18.3]} 20. Rxd6 {[%clk 0:02:11.7]}
20... Ke7 {[%clk 0:01:16]} 21. Rhd1 {[%clk 0:02:12.2]} 21... Re8 {[%clk
0:01:04.9]} 22. Nb5 {[%clk 0:02:01.1]} 22... Rh8 {[%clk 0:00:44.8]} 23. f4
{[%clk 0:01:49.9]} 23... b6 {[%clk 0:00:39.4]} 24. Kb1 {[%clk 0:01:44.7]} 24...
h5 {[%clk 0:00:27.3]} 25. h4 {[%clk 0:01:43.1]} 25... e5 {[%clk 0:00:20.5]} 26.
e4 {[%clk 0:01:25]} 26... Bg4 {[%clk 0:00:18.2]} 27. R1d2 {[%clk 0:01:04.9]}
27... exf4 {[%clk 0:00:16.2]} 28. gxf4 {[%clk 0:01:04.5]} 28... Rhd8 {[%clk
0:00:15.6]} 29. e5 {[%clk 0:00:25.2]} 29... Bf5+ {[%clk 0:00:13]} 30. Kc1 {[%clk
0:00:25.7]} 30... Rac8+ {[%clk 0:00:12.6]} 31. Nc3 {[%clk 0:00:19.6]} 31... Rxd6
{[%clk 0:00:06.8]} 32. Rxd6 {[%clk 0:00:19.3]} 32... Rc4 {[%clk 0:00:06.5]} 33.
Kd2 {[%clk 0:00:16.6]} 33... Be6 {[%clk 0:00:04.1]} 34. Ke3 {[%clk 0:00:13.5]}
34... b5 {[%clk 0:00:03.3]} 35. Ra6 {[%clk 0:00:08.1]} 35... b4 {[%clk
0:00:02.7]} 36. Rxa7+ {[%clk 0:00:08.2]} 36... Kd8 {[%clk 0:00:03.1]} 37. Ne4
{[%clk 0:00:08.3]} 37... Rc2 {[%clk 0:00:03.1]} 38. b3 {[%clk 0:00:05.7]} 38...
Rh2 {[%clk 0:00:01.6]} 39. Ra4 {[%clk 0:00:03.7]} 39... Rxh4 {[%clk 0:00:02.1]}
40. Rxb4 {[%clk 0:00:03.4]} 40... Rh3+ {[%clk 0:00:03]} 41. Kd4 {[%clk
0:00:03.7]} 41... h4 {[%clk 0:00:03.9]} 42. Rb8+ {[%clk 0:00:03.3]} 42... Kc7
{[%clk 0:00:04.3]} 43. Ra8 {[%clk 0:00:03.7]} 43... Rh2 {[%clk 0:00:05.2]} 44.
Ra7+ {[%clk 0:00:04]} 44... Kb6 {[%clk 0:00:05.3]} 45. Ra8 {[%clk 0:00:04.3]}
45... h3 {[%clk 0:00:06.2]} 46. Rh8 {[%clk 0:00:03.6]} 46... Kb7 {[%clk
0:00:06.8]} 47. Ng5 {[%clk 0:00:03.6]} 47... Rd2+ {[%clk 0:00:06.1]} 48. Ke3
{[%clk 0:00:03.4]} 48... h2 {[%clk 0:00:07]} 49. Kxd2 {[%clk 0:00:03.4]} 49...
Bh3 {[%clk 0:00:05.8]} 50. Rxh3 {[%clk 0:00:03.4]} 50... Kb6 {[%clk 0:00:06.2]}
51. Rxh2 {[%clk 0:00:04.3]} 51... Kb5 {[%clk 0:00:07.1]} 52. Rg2 {[%clk
0:00:04.6]} 52... Kb4 {[%clk 0:00:07.8]} 53. Rf2 {[%clk 0:00:05.5]} 53... Ka3
{[%clk 0:00:08.7]} 54. Ne4 {[%clk 0:00:06.1]} 54... Kb2 {[%clk 0:00:09.6]} 55.
f5 {[%clk 0:00:06.6]} 55... Ka1 {[%clk 0:00:10.5]} 56. e6 {[%clk 0:00:07.1]}
56... fxe6 {[%clk 0:00:10.7]} 57. fxe6 {[%clk 0:00:07.1]} 57... g5 {[%clk
0:00:11.6]} 58. e7 {[%clk 0:00:08]} 58... g4 {[%clk 0:00:12.5]} 59. e8=Q {[%clk
0:00:07.6]} 59... g3 {[%clk 0:00:13.4]} 60. Rf1+ {[%clk 0:00:07.9]} 60... Kb2
{[%clk 0:00:13.7]} 61. Qe5+ {[%clk 0:00:08.3]} 61... Kxa2 {[%clk 0:00:14]} 62.
Qa5+ {[%clk 0:00:08.2]} 62... Kxb3 {[%clk 0:00:14.9]} 63. Qa1 {[%clk 0:00:08.7]}
63... Kc4 {[%clk 0:00:15.8]} 64. Qc3+ {[%clk 0:00:07.8]} 64... Kd5 {[%clk
0:00:16.7]} 65. Qd3+ {[%clk 0:00:08.3]} 65... Ke6 {[%clk 0:00:17.1]} 66. Rf6+
{[%clk 0:00:08.3]} 66... Ke5 {[%clk 0:00:17.6]} 67. Qd6+ {[%clk 0:00:08.5]}
67... Kxe4 {[%clk 0:00:18.4]} 68. Re6+ {[%clk 0:00:09]} 68... Kf3 {[%clk
0:00:18.8]} 69. Qd3+ {[%clk 0:00:09.3]} 69... Kg2 {[%clk 0:00:19.7]} 70. Re2+
{[%clk 0:00:09.3]} 70... Kh3 {[%clk 0:00:20.6]} 71. Qh7+ {[%clk 0:00:09.3]}
71... Kg4 {[%clk 0:00:20.5]} 72. Re4+ {[%clk 0:00:09.4]} 72... Kf3 {[%clk
0:00:20.6]} 73. Qf5+ {[%clk 0:00:09.1]} 73... Kg2 {[%clk 0:00:21.3]} 74. Re2+
{[%clk 0:00:08.2]} 74... Kg1 {[%clk 0:00:21.9]} 75. Qb1# {[%clk 0:00:07.7]} 1-0

[Event "*** Titled Tuesday Blitz"]
[Site "Chess.com"]
[Date "2020.04.14"]
[Round "6"]
[White "ElliPaehtz"]
[Black "vovkcoach"]
[Result "1/2-1/2"]
[WhiteElo "2573"]
[BlackElo "2763"]
[TimeControl "180+1"]
[EndTime "11:05:11 PDT"]
[Termination "Game drawn by repetition"]

1. d4 {[%clk 0:03:00.9]} 1... Nf6 {[%clk 0:02:59.9]} 2. Nf3 {[%clk 0:03:00.2]}
2... g6 {[%clk 0:03:00.1]} 3. Bg5 {[%clk 0:02:59.3]} 3... Bg7 {[%clk 0:03:00.5]}
4. Nbd2 {[%clk 0:02:58.8]} 4... O-O {[%clk 0:03:00.8]} 5. c3 {[%clk 0:02:58.2]}
5... d6 {[%clk 0:02:59.5]} 6. e3 {[%clk 0:02:55.1]} 6... c5 {[%clk 0:02:57.6]}
7. Bd3 {[%clk 0:02:51.1]} 7... cxd4 {[%clk 0:02:52.5]} 8. exd4 {[%clk
0:02:49.8]} 8... b6 {[%clk 0:02:52.6]} 9. O-O {[%clk 0:02:49]} 9... Bb7 {[%clk
0:02:52.7]} 10. Qe2 {[%clk 0:02:48.9]} 10... a6 {[%clk 0:02:19.8]} 11. Rfe1
{[%clk 0:02:46.4]} 11... Re8 {[%clk 0:02:20.2]} 12. Ne4 {[%clk 0:02:43.9]} 12...
Nbd7 {[%clk 0:02:18.6]} 13. Qd2 {[%clk 0:02:39.8]} 13... Qc7 {[%clk 0:02:08.9]}
14. Bh6 {[%clk 0:02:37.8]} 14... Bh8 {[%clk 0:02:02.4]} 15. h3 {[%clk
0:02:34.7]} 15... Nxe4 {[%clk 0:01:56.6]} 16. Bxe4 {[%clk 0:02:33.9]} 16... Nf6
{[%clk 0:01:57.5]} 17. Bxb7 {[%clk 0:02:31.6]} 17... Qxb7 {[%clk 0:01:58.4]} 18.
Re2 {[%clk 0:02:20.6]} 18... b5 {[%clk 0:01:58.2]} 19. a3 {[%clk 0:02:18.4]}
19... a5 {[%clk 0:01:54.4]} 20. Rae1 {[%clk 0:02:18.2]} 20... Rac8 {[%clk
0:01:44.4]} 21. Ng5 {[%clk 0:02:08.5]} 21... Bg7 {[%clk 0:01:28.3]} 22. Ne4
{[%clk 0:01:58.4]} 22... Qd7 {[%clk 0:00:49.5]} 23. Qg5 {[%clk 0:01:38.1]} 23...
Qf5 {[%clk 0:00:36.9]} 24. Qh4 {[%clk 0:01:15.7]} 24... Nxe4 {[%clk 0:00:31.8]}
25. Rxe4 {[%clk 0:01:14.9]} 25... Bf6 {[%clk 0:00:32]} 26. Qg3 {[%clk
0:01:09.7]} 26... Qd7 {[%clk 0:00:29.4]} 27. Bg5 {[%clk 0:01:02.2]} 27... Bxg5
{[%clk 0:00:16.6]} 28. Qxg5 {[%clk 0:01:02]} 28... Rc7 {[%clk 0:00:10.2]} 29.
Qh6 {[%clk 0:01:00.8]} 29... e6 {[%clk 0:00:05.9]} 30. h4 {[%clk 0:00:58.4]}
30... f5 {[%clk 0:00:06]} 31. R4e3 {[%clk 0:00:56]} 31... b4 {[%clk 0:00:06.2]}
32. axb4 {[%clk 0:00:55.1]} 32... axb4 {[%clk 0:00:07.1]} 33. h5 {[%clk
0:00:55.2]} 33... Qg7 {[%clk 0:00:06.6]} 34. Qxg7+ {[%clk 0:00:50.1]} 34... Kxg7
{[%clk 0:00:07.5]} 35. Rxe6 {[%clk 0:00:46.3]} 35... Rxe6 {[%clk 0:00:07.3]} 36.
Rxe6 {[%clk 0:00:46.2]} 36... bxc3 {[%clk 0:00:07.5]} 37. bxc3 {[%clk
0:00:45.9]} 37... gxh5 {[%clk 0:00:06.2]} 38. Rxd6 {[%clk 0:00:41]} 38... Rxc3
{[%clk 0:00:06.5]} 39. g3 {[%clk 0:00:40]} 39... Rd3 {[%clk 0:00:04.6]} 40. Kg2
{[%clk 0:00:39.6]} 40... Kf7 {[%clk 0:00:03.2]} 41. f4 {[%clk 0:00:36]} 41...
Kg7 {[%clk 0:00:03.3]} 42. Kh3 {[%clk 0:00:35]} 42... Kf7 {[%clk 0:00:02.3]} 43.
Kh4 {[%clk 0:00:30]} 43... Kg7 {[%clk 0:00:02.4]} 44. Rd7+ {[%clk 0:00:22.8]}
44... Kg6 {[%clk 0:00:02.5]} 45. d5 {[%clk 0:00:21.3]} 45... h6 {[%clk
0:00:02.4]} 46. d6 {[%clk 0:00:20.5]} 46... Rd1 {[%clk 0:00:02.4]} 47. Kh3
{[%clk 0:00:20.3]} 47... Rd2 {[%clk 0:00:02.7]} 48. Rd8 {[%clk 0:00:20]} 48...
Kg7 {[%clk 0:00:02.2]} 49. d7 {[%clk 0:00:15.6]} 49... Rd1 {[%clk 0:00:02.4]}
50. Kg2 {[%clk 0:00:14.8]} 50... Kh7 {[%clk 0:00:02]} 51. Kf2 {[%clk 0:00:14.7]}
51... Kg7 {[%clk 0:00:01.6]} 52. Ke2 {[%clk 0:00:14.8]} 52... Rd6 {[%clk
0:00:02]} 53. Ke3 {[%clk 0:00:14.5]} 53... Kh7 {[%clk 0:00:02.4]} 54. Rf8 {[%clk
0:00:12.1]} 54... Rxd7 {[%clk 0:00:02.8]} 55. Rxf5 {[%clk 0:00:12.1]} 55... Kg6
{[%clk 0:00:03.3]} 56. Re5 {[%clk 0:00:12]} 56... Rd1 {[%clk 0:00:03.7]} 57. Kf3
{[%clk 0:00:11.9]} 57... Rd3+ {[%clk 0:00:03.2]} 58. Kg2 {[%clk 0:00:11.5]}
58... Rd2+ {[%clk 0:00:03.7]} 59. Kh3 {[%clk 0:00:11.6]} 59... Rd1 {[%clk
0:00:04.6]} 60. Re6+ {[%clk 0:00:11.7]} 60... Kg7 {[%clk 0:00:04.2]} 61. Rb6
{[%clk 0:00:11.7]} 61... Rd2 {[%clk 0:00:04.4]} 62. f5 {[%clk 0:00:10.1]} 62...
Rf2 {[%clk 0:00:04.3]} 63. Rg6+ {[%clk 0:00:09]} 63... Kh7 {[%clk 0:00:04.5]}
64. Rf6 {[%clk 0:00:08.9]} 64... Kg7 {[%clk 0:00:05.1]} 65. Rg6+ {[%clk
0:00:09.1]} 65... Kh7 {[%clk 0:00:05.5]} 66. Rf6 {[%clk 0:00:09.3]} 66... Kg7
{[%clk 0:00:06.1]} 67. Rg6+ {[%clk 0:00:09.6]} 1/2-1/2

[Event "*** Titled Tuesday Blitz"]
[Site "Chess.com"]
[Date "2020.04.14"]
[Round "6"]
[White "EndgameGrinder"]
[Black "rasmussvane"]
[Result "1/2-1/2"]
[WhiteElo "2692"]
[BlackElo "2872"]
[TimeControl "180+1"]
[EndTime "11:05:18 PDT"]
[Termination "Game drawn by repetition"]

1. d4 {[%clk 0:03:00.9]} 1... d5 {[%clk 0:02:59.8]} 2. Nf3 {[%clk 0:02:59.7]}
2... Nf6 {[%clk 0:02:59.9]} 3. Bg5 {[%clk 0:02:59.3]} 3... Ne4 {[%clk
0:02:56.7]} 4. Bf4 {[%clk 0:02:58.3]} 4... c5 {[%clk 0:02:57.2]} 5. c3 {[%clk
0:02:49.1]} 5... Nc6 {[%clk 0:02:56.8]} 6. e3 {[%clk 0:02:47.5]} 6... Bg4 {[%clk
0:02:49.8]} 7. Bd3 {[%clk 0:02:46.8]} 7... e6 {[%clk 0:02:49.4]} 8. Nbd2 {[%clk
0:02:46.3]} 8... Nxd2 {[%clk 0:02:45.3]} 9. Qxd2 {[%clk 0:02:46]} 9... Bxf3
{[%clk 0:02:43.5]} 10. gxf3 {[%clk 0:02:46.2]} 10... cxd4 {[%clk 0:02:43.9]} 11.
exd4 {[%clk 0:02:41.9]} 11... Bd6 {[%clk 0:02:44.3]} 12. Bg3 {[%clk 0:02:34.4]}
12... Qc7 {[%clk 0:02:40.7]} 13. Qg5 {[%clk 0:02:28.2]} 13... g6 {[%clk
0:02:30.6]} 14. O-O-O {[%clk 0:02:16.9]} 14... Qe7 {[%clk 0:02:29.5]} 15. Qe3
{[%clk 0:01:44.5]} 15... O-O-O {[%clk 0:02:29.4]} 16. Kb1 {[%clk 0:01:43.9]}
16... Kb8 {[%clk 0:02:26.1]} 17. c4 {[%clk 0:01:39.4]} 17... Qf6 {[%clk
0:01:45.3]} 18. Bxd6+ {[%clk 0:01:01.9]} 18... Rxd6 {[%clk 0:01:44.2]} 19. c5
{[%clk 0:01:02.4]} 19... Rdd8 {[%clk 0:01:41.9]} 20. Bc2 {[%clk 0:00:59]} 20...
Ne7 {[%clk 0:01:26.3]} 21. f4 {[%clk 0:00:55.1]} 21... Ka8 {[%clk 0:01:04.9]}
22. Qe5 {[%clk 0:00:48.8]} 22... Qh4 {[%clk 0:01:01.2]} 23. Qe3 {[%clk
0:00:43.2]} 23... Rc8 {[%clk 0:00:55.8]} 24. b4 {[%clk 0:00:41.3]} 24... Nf5
{[%clk 0:00:51.8]} 25. Bxf5 {[%clk 0:00:37.5]} 25... exf5 {[%clk 0:00:46.4]} 26.
Qg3 {[%clk 0:00:33.6]} 26... Qf6 {[%clk 0:00:45.6]} 27. Rhe1 {[%clk 0:00:32.7]}
27... Qc6 {[%clk 0:00:36]} 28. Re7 {[%clk 0:00:26.1]} 28... Rhe8 {[%clk
0:00:30.7]} 29. Rde1 {[%clk 0:00:20.6]} 29... a6 {[%clk 0:00:22]} 30. Qd3 {[%clk
0:00:16]} 30... Qa4 {[%clk 0:00:18.3]} 31. a3 {[%clk 0:00:13.6]} 31... Rxe7
{[%clk 0:00:16.3]} 32. Rxe7 {[%clk 0:00:14.5]} 32... Re8 {[%clk 0:00:16.8]} 33.
Rxe8+ {[%clk 0:00:13.7]} 33... Qxe8 {[%clk 0:00:17.7]} 34. Qe3 {[%clk
0:00:13.2]} 34... Qb5 {[%clk 0:00:14.7]} 35. Kb2 {[%clk 0:00:12.1]} 35... Qc4
{[%clk 0:00:13.2]} 36. h4 {[%clk 0:00:06]} 36... h5 {[%clk 0:00:12.7]} 37. Qd2
{[%clk 0:00:04.1]} 37... Ka7 {[%clk 0:00:12.6]} 38. Qe3 {[%clk 0:00:04.5]} 38...
Qb5 {[%clk 0:00:09.7]} 39. Qd2 {[%clk 0:00:04.5]} 39... a5 {[%clk 0:00:09.5]}
40. Kb3 {[%clk 0:00:03.6]} 40... Qc4+ {[%clk 0:00:08]} 41. Kb2 {[%clk 0:00:04]}
41... a4 {[%clk 0:00:08.3]} 42. Qe3 {[%clk 0:00:03.5]} 42... Ka6 {[%clk
0:00:06]} 43. Kb1 {[%clk 0:00:02.3]} 43... Qf1+ {[%clk 0:00:04.2]} 44. Kb2
{[%clk 0:00:02.8]} 44... Qc4 {[%clk 0:00:04.6]} 45. Kb1 {[%clk 0:00:02.9]} 45...
Ka7 {[%clk 0:00:05.2]} 46. Kb2 {[%clk 0:00:03.4]} 46... Qb5 {[%clk 0:00:05.7]}
47. Kb1 {[%clk 0:00:03.8]} 47... f6 {[%clk 0:00:06.2]} 48. Kb2 {[%clk
0:00:04.3]} 48... Qc4 {[%clk 0:00:06.7]} 49. Kb1 {[%clk 0:00:04.8]} 49... Ka6
{[%clk 0:00:06.5]} 50. Kb2 {[%clk 0:00:05.3]} 50... Qf1 {[%clk 0:00:05.8]} 51.
Kc3 {[%clk 0:00:03.6]} 51... Qa1+ {[%clk 0:00:05.1]} 52. Kc2 {[%clk 0:00:03.9]}
52... Qa2+ {[%clk 0:00:05.6]} 53. Kc1 {[%clk 0:00:04.5]} 53... Ka7 {[%clk
0:00:06.1]} 54. Qd3 {[%clk 0:00:02.4]} 54... Qxf2 {[%clk 0:00:05.2]} 55. Qb5
{[%clk 0:00:02.9]} 55... Qxf4+ {[%clk 0:00:05]} 56. Kc2 {[%clk 0:00:02.9]} 56...
Qe4+ {[%clk 0:00:05.2]} 57. Kc1 {[%clk 0:00:03.3]} 57... Qe3+ {[%clk 0:00:05.2]}
58. Kc2 {[%clk 0:00:03.7]} 58... Qb3+ {[%clk 0:00:05.1]} 59. Kc1 {[%clk
0:00:03.9]} 59... Qxa3+ {[%clk 0:00:05.1]} 60. Kd2 {[%clk 0:00:04.8]} 60... Qb2+
{[%clk 0:00:05.2]} 61. Kd3 {[%clk 0:00:04.8]} 61... Qb3+ {[%clk 0:00:05.1]} 62.
Kd2 {[%clk 0:00:05.2]} 62... Qa2+ {[%clk 0:00:05.4]} 63. Kd1 {[%clk 0:00:04.5]}
63... Qb3+ {[%clk 0:00:04.3]} 64. Kd2 {[%clk 0:00:04.8]} 64... Qb2+ {[%clk
0:00:03.3]} 65. Ke1 {[%clk 0:00:03.7]} 65... Qc3+ {[%clk 0:00:03.4]} 66. Kf2
{[%clk 0:00:02]} 66... Qxd4+ {[%clk 0:00:03.4]} 67. Kf3 {[%clk 0:00:02.3]} 67...
Qe4+ {[%clk 0:00:03.4]} 68. Kf2 {[%clk 0:00:02.8]} 68... Qxh4+ {[%clk
0:00:03.5]} 69. Kf3 {[%clk 0:00:03.1]} 69... Qe4+ {[%clk 0:00:04]} 70. Kf2
{[%clk 0:00:04]} 70... Qd4+ {[%clk 0:00:04.5]} 71. Kf3 {[%clk 0:00:04.4]} 71...
Qc4 {[%clk 0:00:04.9]} 72. Qb6+ {[%clk 0:00:03.9]} 72... Kb8 {[%clk 0:00:04.3]}
73. Qd8+ {[%clk 0:00:04.4]} 73... Ka7 {[%clk 0:00:04.4]} 74. Qb6+ {[%clk
0:00:05]} 74... Ka8 {[%clk 0:00:04.7]} 75. Qd8+ {[%clk 0:00:05.2]} 75... Ka7
{[%clk 0:00:04.9]} 76. Qb6+ {[%clk 0:00:05.8]} 1/2-1/2

[Event "*** Titled Tuesday Blitz"]
[Site "Chess.com"]
[Date "2020.04.14"]
[Round "6"]
[White "druskacik"]
[Black "Oligan22"]
[Result "1-0"]
[WhiteElo "2593"]
[BlackElo "2400"]
[TimeControl "180+1"]
[EndTime "11:05:20 PDT"]
[Termination "druskacik won on time"]

1. e4 {[%clk 0:03:00.9]} 1... c6 {[%clk 0:03:00]} 2. d4 {[%clk 0:03:00.6]} 2...
d5 {[%clk 0:03:00.6]} 3. exd5 {[%clk 0:03:01.5]} 3... cxd5 {[%clk 0:03:01.5]} 4.
Bd3 {[%clk 0:03:02.4]} 4... Nc6 {[%clk 0:03:01.6]} 5. c3 {[%clk 0:03:02.5]} 5...
Nf6 {[%clk 0:03:01.8]} 6. h3 {[%clk 0:03:02.7]} 6... g6 {[%clk 0:02:55.5]} 7.
Bf4 {[%clk 0:03:02.2]} 7... Bg7 {[%clk 0:02:55.3]} 8. Nf3 {[%clk 0:03:02.1]}
8... O-O {[%clk 0:02:55.3]} 9. O-O {[%clk 0:03:02.1]} 9... Bf5 {[%clk
0:02:55.3]} 10. Be2 {[%clk 0:03:02.4]} 10... Ne4 {[%clk 0:02:48.3]} 11. Nbd2
{[%clk 0:03:00.4]} 11... Re8 {[%clk 0:02:25.5]} 12. Re1 {[%clk 0:02:59.1]} 12...
e5 {[%clk 0:02:20.1]} 13. dxe5 {[%clk 0:02:57.7]} 13... Nxe5 {[%clk 0:02:20.2]}
14. Nxe5 {[%clk 0:02:44.7]} 14... Bxe5 {[%clk 0:02:21.1]} 15. Bxe5 {[%clk
0:02:45]} 15... Rxe5 {[%clk 0:02:22]} 16. Nf3 {[%clk 0:02:41.1]} 16... Re7
{[%clk 0:02:11.9]} 17. Nd4 {[%clk 0:02:17.2]} 17... Qb6 {[%clk 0:02:11.7]} 18.
Qb3 {[%clk 0:02:13]} 18... Be6 {[%clk 0:01:53.9]} 19. Bf3 {[%clk 0:01:56.6]}
19... Qc5 {[%clk 0:01:22.7]} 20. Re2 {[%clk 0:01:44.2]} 20... Rae8 {[%clk
0:01:00.8]} 21. Rae1 {[%clk 0:01:34.6]} 21... Ng5 {[%clk 0:00:56.2]} 22. Re5
{[%clk 0:01:29.2]} 22... Nxf3+ {[%clk 0:00:38.5]} 23. Nxf3 {[%clk 0:01:30.1]}
23... Qc7 {[%clk 0:00:30.1]} 24. Nd4 {[%clk 0:01:17.4]} 24... Kg7 {[%clk
0:00:27.2]} 25. Qd1 {[%clk 0:01:14.9]} 25... Bc8 {[%clk 0:00:24.8]} 26. Rxe7
{[%clk 0:01:09]} 26... Rxe7 {[%clk 0:00:25.7]} 27. Qd2 {[%clk 0:01:06]} 27...
Be6 {[%clk 0:00:23.3]} 28. Qe3 {[%clk 0:01:03.6]} 28... Qb6 {[%clk 0:00:21.3]}
29. Qe5+ {[%clk 0:01:00.3]} 29... Kg8 {[%clk 0:00:20.6]} 30. Re2 {[%clk
0:00:58.9]} 30... Qa6 {[%clk 0:00:20.2]} 31. Qf6 {[%clk 0:00:54.9]} 31... Re8
{[%clk 0:00:19.7]} 32. a3 {[%clk 0:00:49.6]} 32... Qb6 {[%clk 0:00:17.9]} 33. h4
{[%clk 0:00:49.1]} 33... Qd6 {[%clk 0:00:17.7]} 34. h5 {[%clk 0:00:48.3]} 34...
Qe7 {[%clk 0:00:17.9]} 35. Qe5 {[%clk 0:00:45.6]} 35... gxh5 {[%clk 0:00:16.3]}
36. Re3 {[%clk 0:00:44.7]} 36... h4 {[%clk 0:00:15]} 37. Nf5 {[%clk 0:00:41.3]}
37... Qg5 {[%clk 0:00:12.3]} 38. f4 {[%clk 0:00:31.6]} 38... Qg6 {[%clk
0:00:11.8]} 39. Nxh4 {[%clk 0:00:26.7]} 39... Qg7 {[%clk 0:00:11.5]} 40. Nf3
{[%clk 0:00:21.4]} 40... Qxe5 {[%clk 0:00:11.1]} 41. Rxe5 {[%clk 0:00:21.7]}
41... f6 {[%clk 0:00:11]} 42. Re3 {[%clk 0:00:20.3]} 42... Kf7 {[%clk
0:00:11.3]} 43. Nd4 {[%clk 0:00:20.4]} 43... Bg4 {[%clk 0:00:11]} 44. Rxe8
{[%clk 0:00:20.5]} 44... Kxe8 {[%clk 0:00:11.9]} 45. Kf2 {[%clk 0:00:21.4]}
45... Ke7 {[%clk 0:00:12]} 46. Ke3 {[%clk 0:00:21.8]} 46... a6 {[%clk
0:00:12.4]} 47. Nb3 {[%clk 0:00:21.5]} 47... Kd6 {[%clk 0:00:12.7]} 48. Kd4
{[%clk 0:00:21.8]} 48... Bd1 {[%clk 0:00:11.4]} 49. Nc5 {[%clk 0:00:21.6]} 49...
Kc6 {[%clk 0:00:10.4]} 50. Ne6 {[%clk 0:00:21.6]} 50... Kd6 {[%clk 0:00:08.9]}
51. Nf8 {[%clk 0:00:21.6]} 51... h6 {[%clk 0:00:08.6]} 52. Ng6 {[%clk
0:00:21.2]} 52... Bc2 {[%clk 0:00:07.9]} 53. Nh4 {[%clk 0:00:21.5]} 53... Be4
{[%clk 0:00:07.5]} 54. g3 {[%clk 0:00:21.4]} 54... Ke6 {[%clk 0:00:07.7]} 55. g4
{[%clk 0:00:21]} 55... b6 {[%clk 0:00:06.9]} 56. b4 {[%clk 0:00:20.7]} 56... Kd6
{[%clk 0:00:06.1]} 57. Ke3 {[%clk 0:00:19.7]} 57... Ke6 {[%clk 0:00:06.1]} 58.
Kd4 {[%clk 0:00:20.1]} 58... Kd6 {[%clk 0:00:06.5]} 59. f5 {[%clk 0:00:20.6]}
59... Kc6 {[%clk 0:00:05.8]} 60. Ng6 {[%clk 0:00:20.1]} 60... Kd6 {[%clk
0:00:06.1]} 61. Nf4 {[%clk 0:00:19.3]} 61... Bf3 {[%clk 0:00:05.8]} 62. Nh5
{[%clk 0:00:19.3]} 62... Bxg4 {[%clk 0:00:05.8]} 63. Nxf6 {[%clk 0:00:19.4]}
63... Bxf5 {[%clk 0:00:06.4]} 64. Nxd5 {[%clk 0:00:19.3]} 64... b5 {[%clk
0:00:06.2]} 65. Ne3 {[%clk 0:00:19.2]} 65... Bd7 {[%clk 0:00:06.1]} 66. c4
{[%clk 0:00:19]} 66... bxc4 {[%clk 0:00:06]} 67. Nxc4+ {[%clk 0:00:19.9]} 67...
Kc7 {[%clk 0:00:05.1]} 68. Ne5 {[%clk 0:00:20]} 68... Bb5 {[%clk 0:00:03.4]} 69.
Ng6 {[%clk 0:00:19.6]} 69... h5 {[%clk 0:00:03.4]} 70. Kc5 {[%clk 0:00:19]}
70... Bd3 {[%clk 0:00:01.6]} 71. Nf4 {[%clk 0:00:19.2]} 1-0